Cogmind - Beta 13 @@@ ROGUE MODE // 2024.04.24 @ 18:07:05 Player: Exceptionally Mediocre Result: Destroyed by P-80 Master with Gamma Rifle Performance ------------- Evolutions (7) 3500 Regions Visited (12) 2400 Robots Destroyed (141) 705 Value Destroyed (2856) 2856 Prototype IDs (35) 700 Alien Tech Used (0) 0 Bonus (405) 405 TOTAL SCORE: 10566 Bonus ------- Follower Combat Kills 118 Aligned with FarCom 300 Friendly Fire -13 Cogmind --------- Core Integrity 0/1300 Matter 300/300 Energy 98/100 System Corruption 7% Temperature Cool (0) Movement Core (50) Location -3/Research Parts ------- > --- POWER (2) -------- (None) > --- PROPULSION (6) --- (None) > --- UTILITY (11) ----- Advanced Signal Interpreter Improved Utility Shielding Hacking Suite Improved Hacking Suite Improved System Shield > --- WEAPON (2) ------- (None) > --- INVENTORY (5) ---- High-capacity Storage Unit Cloak of Protection Advanced System Restoration Module Peak State ------------ > --- POWER ------------ Light Antimatter Reactor > --- PROPULSION ------- Improved Antigrav System Improved Antigrav System Improved Antigrav System Xenon Bombardment Thruster Xenon Bombardment Thruster Q-thruster > --- UTILITY ---------- Advanced Signal Interpreter Improved Phase Shifter Improved Utility Shielding Hacking Suite Hacking Suite Improved Hacking Suite Improved System Shield > --- WEAPON ----------- Powered Hammer > --- INVENTORY -------- Micro Antimatter Reactor High-capacity Storage Unit Cloak of Protection Advanced System Restoration Module [Rating: 81] Favorites ----------- Power Improved Ion Engine Engine Improved Ion Engine Power Core Micro Fission Core Reactor Micro Antimatter Reactor Propulsion Improved Treads Treads Improved Treads Wheel Wheel Hover Unit Improved Antigrav System Flight Unit Improved VTOL Module Utility Targeting Computer Device Structural Scanner Storage High-capacity Storage Unit Processor Targeting Computer Hackware Hacking Suite Protection Improved Light Armor Plating Weapon Improved Assault Rifle Energy Gun Particle Gun Ballistic Gun Improved Assault Rifle Launcher Rocket Launcher Special Weapon Improved Plasma Cutter Impact Weapon Heavy Mace Slashing Weapon Katana Build | -11 -10 -10 -9 -9 -9 -8 -8 -7 -6 -5 -4 -3 ------- Run | Yrd Mat Min Mat Min Exi Min Mat Fac Fac Fac Fac Res Slots Evolved 14 | . . . 2 . . . 2 2 2 2 2 2 Power 1 | . . . . . . . . . . 1 . . Propulsion 4 | . . . . . . . 2 . 1 . . 1 Utility 9 | . . . 2 . . . . 2 1 1 2 1 Weapon . | . . . . . . . . . . . . . Parts Attached 182 | 7 12 16 34 . 3 4 36 5 6 12 10 37 Power 31 | 1 2 2 6 . 1 . 3 . 2 4 3 7 Engine 17 | 1 2 2 4 . 1 . 3 . 2 2 . . Core 9 | . . . 2 . . . . . . 2 3 2 Reactor 5 | . . . . . . . . . . . . 5 Propulsion 58 | 2 4 7 12 . 2 1 13 . 2 2 2 11 Treads 19 | 2 2 . 6 . 2 1 6 . . . . . Leg . | . . . . . . . . . . . . . Wheel 14 | . 2 7 5 . . . . . . . . . Hover 3 | . . . . . . . . . . . . 3 Flight 22 | . . . 1 . . . 7 . 2 2 2 8 Utility 46 | 2 2 1 8 . . . 9 5 1 3 2 13 Device 18 | 1 1 . 2 . . . 4 1 1 . 2 6 Storage 3 | 1 1 . . . . . 1 . . . . . Processor 8 | . . 1 1 . . . 1 1 . 1 . 3 Hackware 10 | . . . 1 . . . 1 3 . 2 . 3 Protection 7 | . . . 4 . . . 2 . . . . 1 Artifact . | . . . . . . . . . . . . . Weapon 47 | 2 4 6 8 . . 3 11 . 1 3 3 6 Energy Gun 7 | 1 1 1 3 . . . . . . . 1 . Energy Cannon . | . . . . . . . . . . . . . Ballistic Gun 14 | 1 1 3 4 . . 1 4 . . . . . Ballistic Cannon . | . . . . . . . . . . . . . Launcher 11 | . 1 2 1 . . 2 4 . 1 . . . Special Weapon 1 | . . . . . . . . . . 1 . . Impact Weapon 11 | . 1 . . . . . 3 . . 2 1 4 Slashing Weapon 3 | . . . . . . . . . . . 1 2 Piercing Weapon . | . . . . . . . . . . . . . Special Melee Weapon . | . . . . . . . . . . . . . Unidentified Prototypes 9 | . . . 3 . . . 1 . 1 . 2 2 Parts Lost 67 | . 3 11 9 . . . 8 . . 4 . 32 Power 15 | . 2 2 4 . . . 2 . . . . 5 Propulsion 25 | . 1 6 2 . . . 1 . . 3 . 12 Utility 18 | . . 1 2 . . . 3 . . 1 . 11 Weapon 9 | . . 2 1 . . . 2 . . . . 4 Highest Loss Streak 11 | . 2 4 3 . . . 5 . . 3 . 11 To Critical Strikes . | . . . . . . . . . . . . . Average Slot Usage (%) 93 | . 99 98 96 100 100 100 97 89 90 92 84 59 Engine 8 | . 13 13 6 11 11 11 9 7 6 2 . . Core 1 | . . . 3 . . . . . . 8 9 3 Treads 15 | . 18 4 18 22 22 22 30 . . . . . Wheel 3 | . 8 22 3 . . . . . . . . . Flight 4 | . . . . . . . 5 30 31 24 13 8 Device 8 | . 14 4 3 11 11 11 7 5 5 5 13 6 Storage 9 | . 14 14 11 11 11 11 9 7 6 5 5 2 Processor 13 | . . 9 21 22 22 22 11 8 13 9 10 7 Hackware 5 | . . . 1 . . . 1 20 20 22 21 18 Protection 1 | . . . 3 . . . 4 . . . . . Energy Gun 3 | . 14 5 6 . . . . . . . . . Ballistic Gun 11 | . 13 16 15 22 22 11 12 . . . . . Launcher 2 | . . 6 . . . 10 2 . . . . . Impact Weapon 1 | . . . . . . . 2 7 6 7 9 2 Naked Turns . | . . . . . . . . . . . . . Heaviest Build 62 | 12 50 50 54 54 54 55 62 29 29 37 40 49 Greatest Support 112 | 40 40 40 46 46 46 46 112 20 35 35 24 36 Greatest Overweight (x) 5 | . 4 2 2 1 1 1 2 1 1 1 1 5 Average Overweight (x) . | . . 1 1 1 1 1 . 1 . . 1 . Largest Inventory Capacity 20 | 8 20 20 20 20 20 20 20 15 15 15 15 15 Average Capacity 17 | 7 14 20 20 20 20 20 19 15 15 15 15 10 Most Carried 20 | 4 16 20 20 20 20 20 20 14 15 15 15 15 Average Carried 15 | 2 9 18 19 20 20 19 19 12 14 14 14 10 Final Capacity 20 | 8 20 20 20 20 20 20 15 15 15 15 15 5 Final Carried 20 | 4 16 18 20 20 20 20 12 14 15 15 15 3 Class Distribution -------------------- 65% | Mutant 12% | Hacker-Mutant 11% | Scavenger-Mutant 7% | Hacker-Assassin 3% | Hacker-Sprinter Dominant Class ---------------- Mutant | -10/Materials Scavenger-Mutant | -10/Mines Mutant | -9/Materials Mutant | -9/Mines Mutant | -9/Exiles Mutant | -8/Mines Mutant | -8/Materials Hacker-Mutant | -7/Factory Hacker-Sprinter | -6/Factory Hacker-Mutant | -5/Factory Hacker-Assassin | -4/Factory Hacker-Mutant | -3/Research Resources | -11 -10 -10 -9 -9 -9 -8 -8 -7 -6 -5 -4 -3 ----------- Run | Yrd Mat Min Mat Min Exi Min Mat Fac Fac Fac Fac Res Matter Collected 3240 | 294 171 496 651 . 60 150 456 . 451 134 58 319 Remotely . | . . . . . . . . . . . . . Salvage Created 4271 | 114 543 290 1024 . . 222 539 . 251 513 88 687 Parts 245 | 10 45 8 77 . . 24 39 . 6 6 1 29 Haulers Intercepted 12 | . 2 . 2 . . . 1 . 1 3 1 2 Recyclers Shooed 2 | 1 . . 1 . . . . . . . . . Parts Field Recycled . | . . . . . . . . . . . . . Retrieved Matter . | . . . . . . . . . . . . . Parts Self-Destructed . | . . . . . . . . . . . . . Prevented . | . . . . . . . . . . . . . Kills | -11 -10 -10 -9 -9 -9 -8 -8 -7 -6 -5 -4 -3 ------- Run | Yrd Mat Min Mat Min Exi Min Mat Fac Fac Fac Fac Res Combat Hostiles Destroyed 97 | . 10 22 22 . . 14 19 . . . . 10 Melee 7 | . . . . . . . . . . . . 7 Guns 39 | . 8 8 15 . . 3 5 . . . . . AOE 48 | . 2 14 7 . . 11 14 . . . . . Classes Destroyed 14 | 3 6 1 2 . . . 1 . . . . 1 Worker 16 | 1 1 . 4 . . 1 5 . . 1 . 3 Builder 11 | . 2 . 5 . . . 1 . . . . 3 Tunneler 4 | 2 1 . . . . . . . . . . 1 Hauler 12 | . 2 . 2 . . . 1 . 1 3 1 2 Recycler 7 | 1 1 . 2 . . . . . 1 2 . . Operator 4 | . 1 . 2 . . . . . . . . 1 Watcher 5 | . 1 . 4 . . . . . . . . . Swarmer 44 | . 3 3 7 . . 11 11 . . . . 9 Grunt 31 | . 7 4 12 . . 2 6 . . . . . Duelist 2 | . . . 1 . . 1 . . . . . . Sentry 3 | . . . 2 . . . 1 . . . . . Hunter 1 | . . . . . . . 1 . . . . . Programmer 1 | . . . . . . . . . . . . 1 Assembled 15 | . . 15 . . . . . . . . . . Best Kill Streak 19 | 3 4 5 19 . . 4 9 . 1 2 1 6 Combat Bots Only 11 | . 3 5 11 . . 4 6 . . . . 5 Max Kills in Single Turn 4 | 1 2 3 3 . . 3 4 . 1 1 1 1 Gunslinging . | . . . . . . . . . . . . . Exploded 3 | . 1 3 2 . . 3 3 . . . . . Melee 1 | . . . . . . . . . . . . 1 Uniques/NPCs Destroyed . | . . . . . . . . . . . . . Combat | -11 -10 -10 -9 -9 -9 -8 -8 -7 -6 -5 -4 -3 -------- Run | Yrd Mat Min Mat Min Exi Min Mat Fac Fac Fac Fac Res Hostile Shots Fired 695 | . 58 49 145 . . 31 130 5 . 34 . 243 Missed 206 | . 17 7 29 . . 8 38 1 . 12 . 94 Damage Taken 7984 | . 599 738 1346 . . 296 1366 64 . 419 . 3156 Core 2103 | . 85 119 217 . . 59 180 16 . 111 . 1316 Absorbed by Shields . | . . . . . . . . . . . . . Redirected to Shielding 98 | . . . . . . . . . . . . 98 Regen/Repaired (Parts) 206 | . . . . . . . . . . . 206 . Core Remaining (%) 75 | 100 . 18 . . . 31 67 97 100 88 100 . Volleys Fired 279 | 24 70 43 83 . . 16 42 . . 1 . . Largest 2 | 1 2 2 2 . . 2 2 . . 1 . . Hottest 95 | 20 95 85 86 . . 46 46 . . 20 . . Shots Fired 456 | 24 130 68 146 . . 18 69 . . 1 . . Gun 416 | 24 128 56 137 . . 11 60 . . . . . Cannon . | . . . . . . . . . . . . . Launcher 39 | . 2 12 9 . . 7 9 . . . . . Special 1 | . . . . . . . . . . 1 . . Kinetic 303 | 24 70 46 92 . . 11 60 . . . . . Thermal 106 | . 50 10 45 . . . . . . 1 . . Explosive 38 | . 2 12 9 . . 7 8 . . . . . Electromagnetic 9 | . 8 . . . . . 1 . . . . . Robot Hit Streak 25 | 6 14 8 25 . . 7 13 . . . . . Robot Miss Streak 6 | 2 4 6 2 . . 1 2 . . . . . Penetration Max . | . . . . . . . . . . . . . Secondary Targets 1 | . . . . . . . 1 . . . . . Max Gunslinging Chain 1 | . . . . . . . 1 . . . . . Shots Hit Robots 370 | 17 80 43 113 . . 11 49 . 2 15 4 36 Core Hits 222 | 8 32 42 63 . . 18 42 . 1 3 . 13 Critical Kills 2 | . . . . . . . . . . . . 2 Critical Parts Destroyed 7 | . . . . . . . 1 . 1 2 1 2 Critical Strikes 16 | . 2 . 4 . . . 1 . 1 2 1 5 Burn 6 | . 2 . 4 . . . . . . . . . Smash 9 | . . . . . . . 1 . 1 2 1 4 Sever 1 | . . . . . . . . . . . . 1 Melee Attacks 147 | . 1 . . . . . 11 3 11 36 6 79 Impact 107 | . 1 . . . . . 11 3 11 36 6 39 Slashing 40 | . . . . . . . . . . . . 40 Piercing . | . . . . . . . . . . . . . Sneak Attacks 21 | . . . . . . . 1 . 2 6 1 11 Combat Hostiles . | . . . . . . . . . . . . . Follow-up Attacks 4 | . . . . . . . . . . 2 1 1 Damage Inflicted 11275 | 129 1071 1053 2667 . . 921 2091 4 177 988 287 1887 Guns 3871 | 129 960 356 1572 . . 151 703 . . . . . Cannons . | . . . . . . . . . . . . . Explosions 3930 | . 111 697 1095 . . 770 1257 . . . . . Melee 3464 | . . . . . . . 127 . 177 988 287 1885 Ramming 10 | . . . . . . . 4 4 . . . 2 Kinetic 2615 | 129 332 262 1038 . . 151 703 . . . . . Thermal 1188 | . 560 94 534 . . . . . . . . . Explosive 3844 | . 111 697 1095 . . 770 1171 . . . . . Electromagnetic 154 | . 68 . . . . . 86 . . . . . Impact 2528 | . . . . . . . 127 . 177 988 287 949 Slashing 936 | . . . . . . . . . . . . 936 Piercing . | . . . . . . . . . . . . . Highest Corruption 16 | . 4 16 . . . . . . . 4 . 6 Average Corruption 5 | . 2 10 . . . . . . . 4 . 3 Corruption Purged . | . . . . . . . . . . . . . Corruption Blocked . | . . . . . . . . . . . . . Effects 55 | . 20 25 . . . . . . . 9 . 1 Message Errors 14 | . 4 6 . . . . . . . 4 . . Matter Fused 12 | . 5 5 . . . . . . . 2 . . Heat Flow Errors 7 | . 3 3 . . . . . . . 1 . . Energy Discharges 7 | . 2 4 . . . . . . . . . 1 Parts Rejected 1 | . . 1 . . . . . . . . . . Parts Fused 1 | . . . . . . . . . . 1 . . Data Loss (minor) 4 | . 2 2 . . . . . . . . . . Data Loss (major) 2 | . 2 . . . . . . . . . . . Misfires 3 | . 2 1 . . . . . . . . . . Alerts 1 | . . . . . . . . . . 1 . . Weapon Failures 3 | . . 3 . . . . . . . . . . Overload Shots . | . . . . . . . . . . . . . Overflow Damage 1332 | . . 26 26 . . 10 220 . 117 245 58 630 Projectiles . | . . . . . . . . . . . . . Explosions 155 | . . 26 26 . . 10 93 . . . . . Melee 1177 | . . . . . . . 127 . 117 245 58 630 Knockbacks 5 | . . . . . . . 1 . 1 . . 3 Impact 5 | . . . . . . . 1 . 1 . . 3 Kinetic . | . . . . . . . . . . . . . Secondary . | . . . . . . . . . . . . . Self-Inflicted Damage 275 | . 30 118 31 . . 71 22 2 . . . 1 Shots 17 | . 2 6 5 . . 3 1 . . . . . Rammed 3 | . . . . . . . 1 1 . . . 1 Targets Rammed 3 | . . . . . . . 1 1 . . . 1 Kicked . | . . . . . . . . . . . . . Crushed . | . . . . . . . . . . . . . Highest Temperature 326 | . 279 280 201 . . 6 17 . . 179 . 326 Average Temperature 70 | . 68 93 77 . . 3 5 . . 50 . 150 Received Heat Transfer 2687 | . 267 299 606 . . 45 594 . . 234 . 642 Siege Activations . | . . . . . . . . . . . . . Robots Corrupted . | . . . . . . . . . . . . . Combat Hostiles . | . . . . . . . . . . . . . Parts Fried 17 | . . . . . . . . . 3 5 1 8 Impact Corruptions 27 | . . . . . . . 4 . 3 6 1 13 Robots Melted . | . . . . . . . . . . . . . Combat Hostiles . | . . . . . . . . . . . . . Parts Melted 6 | . 2 . 4 . . . . . . . . . Heat Transferred 3219 | . 1480 222 1517 . . . . . . . . . Parts Sabotaged . | . . . . . . . . . . . . . Parts Stolen . | . . . . . . . . . . . . . Parts Stripped . | . . . . . . . . . . . . . Power Chain Reactions . | . . . . . . . . . . . . . Alert | -11 -10 -10 -9 -9 -9 -8 -8 -7 -6 -5 -4 -3 ------- Run | Yrd Mat Min Mat Min Exi Min Mat Fac Fac Fac Fac Res Peak Influence 352 | 20 178 179 352 69 . 220 322 68 138 197 19 319 Initial 69 | . 13 40 29 69 . . . 33 32 67 . . Average 95 | 7 76 108 178 69 . 66 97 47 58 135 14 90 Maximum Alert Level 1 | . . . 1 . . 1 1 . . . . 1 Low Security (%) 89 | 100 100 100 61 100 . 98 91 100 100 100 100 80 Level 1 10 | . . . 38 . . 1 8 . . . . 19 Level 2 . | . . . . . . . . . . . . . Level 3 . | . . . . . . . . . . . . . Level 4 . | . . . . . . . . . . . . . Level 5 . | . . . . . . . . . . . . . High Security . | . . . . . . . . . . . . . Max Security . | . . . . . . . . . . . . . Squads Dispatched 20 | . 2 . 3 . . . 2 1 1 2 1 8 Investigation 9 | . 1 . 2 . . . . 1 1 1 1 2 Extermination 1 | . . . . . . . . . . . . 1 Reinforcement 9 | . 1 . 1 . . . 2 . . 1 . 4 Assault . | . . . . . . . . . . . . . Garrison 1 | . . . . . . . . . . . . 1 Intercept . | . . . . . . . . . . . . . Searches Triggered . | . . . . . . . . . . . . . Construction Impeded 2 | . . . . . . . 1 . . . . 1 Haulers Reinforced 1 | . . . . . . . . . . 1 . . Active Scanning Responses . | . . . . . . . . . . . . . Cargo Convoy Interrupts . | . . . . . . . . . . . . . Stealth | -11 -10 -10 -9 -9 -9 -8 -8 -7 -6 -5 -4 -3 --------- Run | Yrd Mat Min Mat Min Exi Min Mat Fac Fac Fac Fac Res Distress Signals 6 | . . . 2 . . . 4 . . . . . Communications Jammed . | . . . . . . . . . . . . . Distress Signals . | . . . . . . . . . . . . . Times Spotted 170 | . 19 24 32 . . 14 31 3 2 3 1 41 Peak Tracking Total 9 | . 4 5 9 . . 4 7 4 5 2 . 8 Tactical Retreats 19 | . 1 1 . . . . 1 . 2 3 . 11 Traps | -11 -10 -10 -9 -9 -9 -8 -8 -7 -6 -5 -4 -3 ------- Run | Yrd Mat Min Mat Min Exi Min Mat Fac Fac Fac Fac Res Traps Triggered 11 | . 5 . 3 . . . . . . 1 1 1 Indirectly . | . . . . . . . . . . . . . Trap Hack Attempts . | . . . . . . . . . . . . . Triggered . | . . . . . . . . . . . . . Disarmed . | . . . . . . . . . . . . . Reprogrammed . | . . . . . . . . . . . . . Reused . | . . . . . . . . . . . . . Traps Extracted . | . . . . . . . . . . . . . Installed . | . . . . . . . . . . . . . Triggered . | . . . . . . . . . . . . . Machines | -11 -10 -10 -9 -9 -9 -8 -8 -7 -6 -5 -4 -3 ---------- Run | Yrd Mat Min Mat Min Exi Min Mat Fac Fac Fac Fac Res Machines Disabled 12 | . 2 1 2 . . 4 3 . . . . . Max in Single Turn 2 | . 1 1 1 . . 1 2 . . . . . Garrison Access 4 | . . . . . . . . 1 1 1 . 1 Machines Repaired . | . . . . . . . . . . . . . Machines Dismantled . | . . . . . . . . . . . . . Machines Sabotaged . | . . . . . . . . . . . . . Overloaded Fab Kills . | . . . . . . . . . . . . . Hacking | -11 -10 -10 -9 -9 -9 -8 -8 -7 -6 -5 -4 -3 --------- Run | Yrd Mat Min Mat Min Exi Min Mat Fac Fac Fac Fac Res Machines Accessed 36 | . 7 . 3 . 1 . 6 4 3 5 2 5 Terminals 21 | . 6 . 2 . . . 4 3 . 3 1 2 Fabricators 2 | . . . . . . . . . 1 . . 1 Repair Stations 1 | . . . . . . . . . . . 1 . Recycling Units 1 | . 1 . . . . . . . . . . . Scanalyzers 6 | . . . 1 . . . 2 . 1 1 . 1 Garrison Access 4 | . . . . . . . . 1 1 1 . 1 Total Hacks 124 | . 17 . 10 . 1 . 26 11 14 20 13 12 Successful 81 | . 9 . 5 . 1 . 19 5 12 14 9 7 Failed 43 | . 8 . 5 . . . 7 6 2 6 4 5 Catastrophic 4 | . 1 . . . . . 1 . . . 1 1 Database Lockouts . | . . . . . . . . . . . . . Manual 57 | . 14 . 6 . 1 . 12 9 1 7 3 4 Terminals 56 | . 16 . 6 . . . 12 9 . 6 3 4 Fabricators 5 | . . . . . . . . . 3 . . 2 Repair Stations 10 | . . . . . . . . . . . 10 . Recycling Units 1 | . 1 . . . . . . . . . . . Scanalyzers 42 | . . . 4 . . . 14 . 8 12 . 4 Garrison Access 9 | . . . . . . . . 2 3 2 . 2 Terminal Hacks 9 | . 3 . 2 . 1 . 1 1 . . . 1 Record 1 | . . . . . . . . . . . . 1 Robot Analysis 1 | . 1 . . . . . . . . . . . Prototype ID Bank 1 | . . . . . . . . 1 . . . . Terminal Index 3 | . 2 . 1 . . . . . . . . . Unreport Threat 2 | . . . 1 . . . 1 . . . . . Derelict Proto ID Bank 1 | . . . . . 1 . . . . . . . Fabricator Hacks 2 | . . . . . . . . . 2 . . . Load Schematic 1 | . . . . . . . . . 1 . . . Build 1 | . . . . . . . . . 1 . . . Repair Station Hacks 8 | . . . . . . . . . . . 8 . Scan Component 4 | . . . . . . . . . . . 4 . Repair 4 | . . . . . . . . . . . 4 . Recycling Unit Hacks 1 | . 1 . . . . . . . . . . . Retrieve Components 1 | . 1 . . . . . . . . . . . Scanalyzer 34 | . . . 1 . . . 14 . 8 9 . 2 Insert Component 17 | . . . 1 . . . 6 . 4 5 . 1 Analyze 17 | . . . . . . . 8 . 4 4 . 1 Garrison Access Hacks 4 | . . . . . . . . 1 1 1 . 1 Seal Access 4 | . . . . . . . . 1 1 1 . 1 Unauthorized Hacks 23 | . 5 . 2 . . . 4 3 1 4 1 3 Terminals 20 | . 5 . 2 . . . 4 3 . 3 1 2 Botnet 20 | . 5 . 2 . . . 4 3 . 3 1 2 Fabricators . | . . . . . . . . . . . . . Repair Stations . | . . . . . . . . . . . . . Recycling Units . | . . . . . . . . . . . . . Scanalyzers . | . . . . . . . . . . . . . Garrison Access 3 | . . . . . . . . . 1 1 . 1 Reprogram 3 | . . . . . . . . . 1 1 . 1 Data Cores Recovered 1 | . . . 1 . . . . . . . . . Used 1 | . . . 1 . . . . . . . . . Hacking Detections 23 | . 6 . 2 . . . 4 3 1 3 1 3 Full Trace Events 10 | . 3 . 1 . . . 1 1 1 1 . 2 Feedback Events . | . . . . . . . . . . . . . Feedback Blocked . | . . . . . . . . . . . . . Robot Schematics Acquired . | . . . . . . . . . . . . . Robots Built . | . . . . . . . . . . . . . Authchips . | . . . . . . . . . . . . . Time . | . . . . . . . . . . . . . Total Robot Build Rating . | . . . . . . . . . . . . . Part Schematics Acquired 15 | . . . . . . . 6 . 4 4 . 1 Parts Built . | . . . . . . . . . . . . . Authchips . | . . . . . . . . . . . . . Time 58 | . . . . . . . . . 58 . . . Total Part Build Rating . | . . . . . . . . . . . . . Parts Repaired 4 | . . . . . . . . . . . 4 . Time 192 | . . . . . . . . . . . 192 . Parts Recycled . | . . . . . . . . . . . . . Recycled Matter . | . . . . . . . . . . . . . Retrieved Matter . | . . . . . . . . . . . . . Retrieved Components 3 | . 3 . . . . . . . . . . . Parts Scanalyzed 17 | . . . 1 . . . 6 . 4 5 . 1 Part Schematics Acquired 15 | . . . . . . . 6 . 4 4 . 1 Parts Damaged 2 | . . . 1 . . . . . . 1 . . Bothacking | -11 -10 -10 -9 -9 -9 -8 -8 -7 -6 -5 -4 -3 ------------ Run | Yrd Mat Min Mat Min Exi Min Mat Fac Fac Fac Fac Res Used RIF Installer . | . . . . . . . . . . . . . Robots Hacked . | . . . . . . . . . . . . . Non-combat . | . . . . . . . . . . . . . Combat . | . . . . . . . . . . . . . Robot Hacks Applied . | . . . . . . . . . . . . . Relay Couplers Released 1 | . . . . . . . . . . . . 1 Machine Destruction 1 | . . . . . . . . . . . . 1 Fabnet Peak Effective % . | . . . . . . . . . . . . . Robots Rewired . | . . . . . . . . . . . . . Allies Hacked . | . . . . . . . . . . . . . Hacks Repelled . | . . . . . . . . . . . . . Allies | -11 -10 -10 -9 -9 -9 -8 -8 -7 -6 -5 -4 -3 -------- Run | Yrd Mat Min Mat Min Exi Min Mat Fac Fac Fac Fac Res Total Allies 3 | . . 3 . . . . . . . . . . Largest Group 2 | . . 2 1 . . . . . . . . . Highest-Rated Group 42 | . . 42 31 . . . . . . . . . Highest-Rated Ally 31 | . . 31 31 . . . . . . . . . Total Orders . | . . . . . . . . . . . . . Ally Attacks 18 | . . 5 13 . . . . . . . . . Total Damage 269 | . . 83 186 . . . . . . . . . Kills 4 | . . 1 3 . . . . . . . . . Allies Corrupted . | . . . . . . . . . . . . . Allies Melted . | . . . . . . . . . . . . . Intel | -11 -10 -10 -9 -9 -9 -8 -8 -7 -6 -5 -4 -3 ------- Run | Yrd Mat Min Mat Min Exi Min Mat Fac Fac Fac Fac Res Robot Analysis Total 1 | . 1 . . . . . . . . . . . Derelict Logs Recovered 1 | . . 1 . . . . . . . . . . Drone Launches . | . . . . . . . . . . . . . Drone Recoveries . | . . . . . . . . . . . . . Exploration | -11 -10 -10 -9 -9 -9 -8 -8 -7 -6 -5 -4 -3 ------------- Run | Yrd Mat Min Mat Min Exi Min Mat Fac Fac Fac Fac Res Turns Passed 9728 | 178 1478 581 1649 343 554 1613 1049 341 195 410 412 925 Spaces Moved 6065 | 77 784 348 637 143 229 644 549 326 469 687 177 995 Core 12 | 2 . . . . . . . . . . . 10 Treads 2502 | 75 461 35 483 143 229 644 432 . . . . . Legs . | . . . . . . . . . . . . . Wheels 790 | . 323 313 154 . . . . . . . . . Hover 42 | . . . . . . . . . . . . 42 Flight 2719 | . . . . . . . 117 326 469 687 177 943 Fastest Speed 24 | 50 110 110 105 240 240 240 96 98 24 24 103 29 Average Speed 130 | 157 152 123 208 240 240 243 149 98 28 41 103 65 Slowest Speed 385 | 160 320 240 320 240 240 245 245 98 98 103 103 385 Overloaded Moves . | . . . . . . . . . . . . . Propulsion Burnouts . | . . . . . . . . . . . . . Robots Hopped 2 | . . . . . . . . . . 2 . . Cave-ins Triggered . | . . . . . . . . . . . . . Exploration Rate (%) 43 | 5 87 76 54 46 60 101 59 13 14 18 4 34 Regions Visited 12 Branch Regions 4 Pre-discovered Areas 1 | . . 1 . . . . . . . . . . Known Exits Taken 4 | . . . . . . . . 1 1 1 1 . Unknown Exits Taken 8 | 1 1 1 1 1 1 1 1 . . . . . Scrap Searched 3 | . . 1 . . . 2 . . . . . . Spaces Dug 83 | . 3 17 . . . . 7 3 9 14 1 29 Terrain Destroyed 266 | . 11 78 14 . . 67 40 3 9 14 1 29 Melee 64 | . 1 . . . . . 7 3 9 14 1 29 Projectile . | . . . . . . . . . . . . . AOE 202 | . 10 78 14 . . 67 33 . . . . . Terrain Rammed . | . . . . . . . . . . . . . Walls Destroyed . | . . . . . . . . . . . . . Machines Disabled . | . . . . . . . . . . . . . Actions | -11 -10 -10 -9 -9 -9 -8 -8 -7 -6 -5 -4 -3 --------- Run | Yrd Mat Min Mat Min Exi Min Mat Fac Fac Fac Fac Res Total 7203 | 111 954 441 822 144 235 672 701 342 510 749 395 1127 Wait 296 | . 57 17 6 . . . 5 . 11 . 199 1 Move 6050 | 76 783 347 636 142 228 643 548 326 468 682 176 995 Hop 2 | . . . . . . . . . . 2 . . Pick Up 130 | 4 20 15 31 1 2 4 24 5 7 10 3 4 Fast Attach 67 | 7 3 1 12 . . . 5 1 1 3 6 28 Attach 54 | . 2 12 11 . . . 12 4 2 6 1 4 Detach 17 | . 2 1 5 . . . 2 2 1 2 . 2 Swap 61 | . 7 3 11 . 3 4 19 . 3 3 3 5 Drop 111 | . 9 2 27 1 2 5 32 1 6 9 3 14 Fire 279 | 24 70 43 83 . . 16 42 . . 1 . . Melee 134 | . 1 . . . . . 11 3 11 31 4 73 Ram 2 | . . . . . . . 1 . . . . 1 Kick . | . . . . . . . . . . . . . Crush . | . . . . . . . . . . . . . Escape Stasis . | . . . . . . . . . . . . . Rewire . | . . . . . . . . . . . . . Trap . | . . . . . . . . . . . . . Miscellaneous . | . . . . . . . . . . . . . Route ------- -11/Scrapyard -10/Materials (discovered 4 exits: *Mat x2 / [*Min] / [*Sub]) -10/Mines (discovered 2 exits: *Mat x2) -9/Materials (discovered 3 exits: *Mat / [*Min x2]) -9/Mines (discovered 2 exits: *Mat / *Exi) -9/Exiles -8/Mines (discovered 2 exits: *Mat x2) -8/Materials -7/Factory -6/Factory -5/Factory -4/Factory -3/Research History --------- Turn | Location | Event 35 | -11/Scrapyard | Discovered new exit (range 15) 179 | -11/Scrapyard | Entered Materials 312 | -10/Materials | Build established: Mutant 535 | -10/Materials | Discovered new exit (range 9) 745 | -10/Materials | Discovered new exit (range 14) 996 | -10/Materials | Discovered new exit (range 11) 1320 | -10/Materials | Build established: Scavenger-Mutant 1393 | -10/Materials | Discovered new exit (range 15) 1657 | -10/Materials | Entered Mines 1694 | -10/Mines | Met a Derelict bent on vengeance 1724 | -10/Mines | Assembled infested the area 1729 | -10/Mines | Assisted by a Guerilla fighting off Assembled 1840 | -10/Mines | System corruption reached 10% 1859 | -10/Mines | Core integrity fell below 50% 1898 | -10/Mines | Lost 4 parts (2n1u1w) 2088 | -10/Mines | Discovered new exit (range 8) 2109 | -10/Mines | Learned location of Storage (-8) 2183 | -10/Mines | Core integrity fell below 20% 2229 | -10/Mines | Discovered new exit (range 5) 2235 | -10/Mines | Escorted by a lone wolf Derelict 2238 | -10/Mines | Entered Materials 2238 | -9/Materials | Accompanied by 1 ally 2238 | -9/Materials | Evolved 2 slots: Utility x2 2717 | -9/Materials | Lost 3 parts (1n1u1w) 2729 | -9/Materials | Destroyed 11 combat bots 2804 | -9/Materials | Discovered new exit (range 7) 2842 | -9/Materials | Discovered new exit (range 8) 2983 | -9/Materials | Build established: Mutant 3223 | -9/Materials | Core integrity fell below 50% 3255 | -9/Materials | Lost 3 parts (2p1u) 3423 | -9/Materials | Discovered new exit (range 9) 3887 | -9/Materials | Entered Mines 3926 | -9/Mines | Discovered new exit (range 10) 4161 | -9/Mines | Received a Rocket Launcher from a helpful Derelict 4218 | -9/Mines | Deemed a non-threat by the Exiles lab entrance 4218 | -9/Mines | Discovered new exit (range 6) 4230 | -9/Mines | Entered Exiles 4288 | -9/Exiles | Met 8R-AWN 4326 | -9/Exiles | Met EX-HEX 4394 | -9/Exiles | Met EX-BIN 4430 | -9/Exiles | Aligned with FarCom system 4432 | -9/Exiles | Given EX-Vault access code 4490 | -9/Exiles | Opened EX-Vault 4516 | -9/Exiles | Found Cloak of Protection 4565 | -9/Exiles | Warned to stay clear of 0b10 Research branches 4593 | -9/Exiles | Exiles lab attacked by MAIN.C 4765 | -9/Exiles | Discovered new exit (range 10) 4784 | -9/Exiles | Left Exiles lab with Cloak of Protection 4784 | -9/Exiles | Entered Mines 5505 | -8/Mines | Discovered new exit (range 6) 5571 | -8/Mines | Discovered new exit (range 4) 6397 | -8/Mines | Entered Materials 6397 | -8/Materials | Evolved 2 slots: Propulsion x2 7422 | -8/Materials | Discovered new exit (range 15) 7446 | -8/Materials | Entered Factory 7446 | -7/Factory | Evolved 2 slots: Utility x2 7474 | -7/Factory | Lost 5 parts (2p1n1u1w) 7764 | -7/Factory | Discovered new exit (range 15) 7772 | -7/Factory | Build established: Hacker-Mutant 7785 | -7/Factory | Identified exit to Factory 7787 | -7/Factory | Entered another Factory area 7787 | -6/Factory | Evolved 2 slots: Propulsion x1, Utility x1 7956 | -6/Factory | Found Prototype Launcher 7957 | -6/Factory | Identified Scatter Rocket Array 7970 | -6/Factory | Discovered new exit (range 5) 7973 | -6/Factory | Identified exit to Factory 7982 | -6/Factory | Entered another Factory area 7982 | -5/Factory | Evolved 2 slots: Power x1, Utility x1 8291 | -5/Factory | Lost 3 parts (3n) 8349 | -5/Factory | Discovered new exit (range 13) 8391 | -5/Factory | Identified exit to Factory 8392 | -5/Factory | Entered another Factory area 8392 | -4/Factory | Evolved 2 slots: Utility x2 8470 | -4/Factory | Discovered new exit (range 9) 8518 | -4/Factory | Identified exit to Research 8582 | -4/Factory | Repaired Mic. Fission Core 8644 | -4/Factory | Repaired Imp. VTOL Module 8683 | -4/Factory | Repaired Hvy. Mace 8723 | -4/Factory | Repaired Cesium-ion Thruster 8744 | -4/Factory | Build established: Hacker-Assassin 8804 | -4/Factory | Entered Research 8804 | -3/Research | Evolved 2 slots: Propulsion x1, Utility x1 9003 | -3/Research | Garrison activated, responded to threat 9064 | -3/Research | Spotted B-86 Titan 9199 | -3/Research | Lost 9 parts (2p4n3u) 9355 | -3/Research | Lost 3 parts (1p1u1w) 9430 | -3/Research | Found Prototype Device 9430 | -3/Research | Identified Exp. Thermal Shield 9537 | -3/Research | Core integrity fell below 50% 9543 | -3/Research | Build established: Hacker-Mutant 9599 | -3/Research | Lost 5 parts (1n3u1w) 9693 | -3/Research | Spotted B-86 Titan 9702 | -3/Research | Core integrity fell below 20% 9729 | -3/Research | Destroyed by P-80 Master with Gamma Rifle Last Messages --------------- 09694_ Xenon Bombardment Thruster destroyed. 09694_ Knocked back. 09694_ Subatomic Condenser disabled. 09702_ Acquired 4 matter. 09705_ Scanalyzer disabled. 09710_ Slug penetrates Wall. 09711_ Imp. Phase Shifter destroyed. 09712_ System corrupted: Energy discharge (-21). 09712_ Critical hit (Burn: +50). 09715_ Xenon Bombardment Thruster destroyed. 09715_ Imp. Antigrav System destroyed. 09716_ Penetrated by Slug. 09716_ Slug penetrates Wall. 09718_ Imp. Antigrav System destroyed. 09719_ Powered Hammer destroyed. 09720_ Q-thruster destroyed. 09720_ Imp. Antigrav System destroyed. 09725_ Slammed into G-67 Veteran. 09728_ Mic. Antimatter Reactor destroyed. 09728_ Hacking Suite destroyed. Map ----- +----------------------------------------------------+ | ???????????????????????????????????????????# | | ???????????????????????????????????????????# | | ???????????????????????????????????????????# | | ???????????????????????????????????????????# | | ???????????????????????????????????????????# | | ???????????????????????????????????????????# | | ???????????????????????????????????????????# | | ??????????????????????????????????############"#"+ | | ??????????????????????????????????# # | | ??????????????????????????????????# # | | ??????????????????????????????????#"" =# | | ??????????????????????????????????#"" #!! | | ??????????????????????????????????# " #!! | | ??????????????????????????????????#S " | | ????????????????#####+###?????????#"" " | | ???????????????? ?????????#"" # | | ????????????????? ?????????#"" # "# | | ?????????????????? ?????????# # ## | | ??????????????????? ?????????# " #### | | ????????????????????# ?????????# # #??? | | ????????????????????# ?????????# " #??? | | ????????????????????# ###+##########;"# #??? | | ????????????????????# g #??? | | ????????????????????+ p #??? | | ????????????????????# g p p +??? | | ??????????????" + R @ %g #??? | | ????????????????????########+#####"####### #??? | | ????????????????????????# ###?????? #??? | | ????????????????????????# #???????? #??? | | ????????????????????????# #???????? #??? | | ????????????????????????# #???????? #??? | | ????????????????????????# #??????????? #??? | | ????????????????????????# #????????????#??? | | ????????????????????????# #???????????????? | | ????????????????????????# #???????????????? | | ????????????????????????# #???????????????? | | ????????????????????????##########???????????????? | | ?????????????????????????????????????????????????? | | ?????????????????????????????????????????????????? | | ?????????????????????????????????????????????????? | | ?????????????????????????????????????????????????? | | ?????????????????????????????????????????????????? | | ?????????????????????????????????????????????????? | | ?????????????????????????????????????????????????? | | ?????????????????????????????????????????????????? | | ?????????????????????????????????????????????????? | | ?????????????????????????????????????????????????? | | ?????????????????????????????????????????????????? | | ?????????????????????????????????????????????????? | | ?????????????????????????????????????????????????? | +----------------------------------------------------+ Best States ------------- Heat Dissipation 46 Energy Generation 33 Energy Capacity 390 Matter Stores 300 Matter Capacity 300 Sight Range 16 Robot Scan Range 16 Terrain Scan Range 16 Terrain Scan Density 10 ECM Strength 1 Cloak Strength 5 Power Amplification 20 Additional Mass Support 9 Corruption Block 8 Armor Coverage 150 Core Shielding 20 Utility Shielding 66 Phase Shifting 10 Evasion (%) 73 Targeting Accuracy 10 Melee Accuracy 8 Recoil Reduction 4 Offensive Hacking 42 Defensive Hacking 32 Item Schematics ----------------- Hacking Suite | -8/Materials | Scanalyzed System Shield | -8/Materials | Scanalyzed Melee Analysis Suite | -8/Materials | Scanalyzed Imp. VTOL Module | -8/Materials | Scanalyzed Microactuators | -8/Materials | Scanalyzed Hcp. Storage Unit | -8/Materials | Scanalyzed Transmission Jammer | -6/Factory | Scanalyzed Imp. Medium Armor Plating | -6/Factory | Scanalyzed Corruption Screen | -6/Factory | Scanalyzed Imp. Ion Engine | -6/Factory | Scanalyzed Scatter Rocket Array | -5/Factory | Scanalyzed Adv. Melee Analysis Suite | -5/Factory | Scanalyzed Nuclear Pulse Thruster | -5/Factory | Scanalyzed Katana | -5/Factory | Scanalyzed Mic. Antimatter Reactor | -3/Research | Scanalyzed Robot Schematics ------------------ None Fabricated ------------ Nothing Alien Tech Used ----------------- None Achievements -------------- None Challenges ------------ None Game ------ Seed FusionMappingPod Manual? 0 Play Time 02:13:11 Cumulative 109.0 hours Start 2024.04.24 @ 15:34:56 End 2024.04.24 @ 18:07:05 Sessions 1 Manual Loads 0 Difficulty Rogue Special Mode None Game No. 124 Rogue 124 Adventurer 0 Explorer 0 Win Type - Total 0 Types 0/0/0/0/0/0/0/0/0 Lore% 29 Gallery% 54 Achievement% 40 Wizard Run 0 Options --------- Layout 1 ASCII 0 Keyboard 1 Movement Vi Keybinds 0 Fullscreen 1 Font 24/Smallcaps Map View 50x35 Zoom Use 0% Tactical HUD 1 Map Filters NONE Filters NONE Steam 1 RUN: 5b4dc066-599e-452e-b263-176d125ae572